[Event "Championnat du monde jeunes U10F"]
[Date "2024.11.26"]
[White "Foong, Livia"]
[Black "Bayramova, Aya"]
[WhiteElo "1461"]
[BlackElo "1634"]
[Round "11.26"]
[Result "0-1"]
[TimeControl "5400+30"]

1. d4 {[%clk 1:30:57]} 1... Nf6 {[%clk 1:30:53]} 2. Nf3 {[%clk 1:31:18]} 2... e6
{[%clk 1:31:10]} 3. Bf4 {[%clk 1:31:44]} 3... c5 {[%clk 1:31:22]} 4. e3 {[%clk
1:32:00]} 4... Qb6 {[%clk 1:31:32]} 5. Qc1 {[%clk 1:31:49]} 5... Nc6 {[%clk
1:31:44]} 6. c3 {[%clk 1:31:23]} 6... cxd4 {[%clk 1:31:14]} 7. cxd4 {[%clk
1:31:23]} 7... Bb4+ {[%clk 1:31:19]} 8. Nc3 {[%clk 1:31:08]} 8... Nd5 {[%clk
1:31:35]} 9. Bg3 {[%clk 1:30:08]} 9... Qa5 {[%clk 1:31:43]} 10. Nd2 {[%clk
1:28:05]} 10... Nxc3 {[%clk 1:31:08]} 11. a3 {[%clk 1:24:40]} 11... Ne4 {[%clk
1:27:33]} 12. axb4 {[%clk 1:23:25]} 12... Qxb4 {[%clk 1:27:48]} 13. Bd3 {[%clk
1:22:34]} 13... Nxd2 {[%clk 1:26:09]} 14. Qxd2 {[%clk 1:22:41]} 14... Qxd2+
{[%clk 1:26:30]} 15. Kxd2 {[%clk 1:23:05]} 15... Ke7 {[%clk 1:26:50]} 16. Rhc1
{[%clk 1:21:30]} 16... f6 {[%clk 1:26:34]} 17. Kc3 {[%clk 1:16:05]} 17... d5
{[%clk 1:26:07]} 18. e4 {[%clk 1:15:02]} 18... e5 {[%clk 1:23:33]} 19. dxe5
{[%clk 1:14:17]} 19... d4+ {[%clk 1:21:43]} 20. Kd2 {[%clk 1:13:54]} 20... fxe5
{[%clk 1:21:35]} 21. b4 {[%clk 1:11:50]} 21... Nxb4 {[%clk 1:13:31]} 22. Bxe5
{[%clk 1:11:42]} 22... Nc6 {[%clk 1:13:57]} 23. Bg3 {[%clk 1:11:17]} 23... Be6
{[%clk 1:13:32]} 24. Bb5 {[%clk 1:09:33]} 24... Bd7 {[%clk 1:12:33]} 25. f3
{[%clk 1:09:05]} 25... Ke6 {[%clk 0:53:04]} 26. Bf2 {[%clk 1:09:09]} 26... Rhd8
{[%clk 0:52:14]} 27. Rc4 {[%clk 1:07:18]} 27... Ne5 {[%clk 0:46:00]} 28. Bxd7+
{[%clk 1:05:51]} 28... Rxd7 {[%clk 0:46:22]} 29. Rxd4 {[%clk 1:05:36]} 29...
Rad8 {[%clk 0:46:35]} 30. Rxd7 {[%clk 1:03:34]} 30... Rxd7+ {[%clk 0:45:55]} 31.
Ke2 {[%clk 1:03:41]} 31... a6 {[%clk 0:46:02]} 32. f4 {[%clk 1:00:07]} 32... Nc4
{[%clk 0:45:28]} 33. Rc1 {[%clk 0:58:14]} 33... b5 34. Rd1 {[%clk 0:56:41]}
34... Rxd1 {[%clk 0:43:06]} 35. Kxd1 {[%clk 0:56:59]} 35... Nd6 {[%clk 0:43:16]}
36. e5 {[%clk 0:56:45]} 36... Ne4 {[%clk 0:43:31]} 37. Bb6 {[%clk 0:56:24]}
37... Nc3+ {[%clk 0:40:28]} 38. Kc2 {[%clk 0:56:20]} 38... Nd5 {[%clk 0:37:20]}
39. g3 {[%clk 0:56:13]} 39... Nxb6 {[%clk 0:37:48]} 40. Kb3 {[%clk 0:55:57]}
40... a5 {[%clk 0:38:14]} 41. h3 {[%clk 0:55:04]} 41... a4+ {[%clk 0:38:38]} 42.
Ka2 {[%clk 0:54:44]} 42... b4 {[%clk 0:39:06]} 43. Kb2 Nc4+ {[%clk 0:39:29]} 44.
Kc2 {[%clk 0:52:58]} 44... b3+ {[%clk 0:39:52]} 45. Kb1 {[%clk 0:52:13]} 45...
a3 {[%clk 0:39:57]} 46. f5+ {[%clk 0:51:29]} 46... Kxe5 {[%clk 0:39:46]} 47. f6
{[%clk 0:51:18]} 47... gxf6 {[%clk 0:40:12]} 48. g4 {[%clk 0:51:12]} 48... Nd2+
{[%clk 0:40:36]} 49. Ka1 {[%clk 0:51:05]} 49... b2+ {[%clk 0:40:57]} 50. Ka2
{[%clk 0:50:55]} 50... b1=Q+ 51. Kxa3 {[%clk 0:51:12]} 51... Qb3# {[%clk
0:41:45]} 0-1

[Variant "Standard"]
[Site "Europe Echecs"]

[Event "Championnat du monde jeunes U10F"]
[Date "2024.11.26"]
[White "Aragonda, Sahasra"]
[Black "Afandi, Sadagul"]
[WhiteElo "1526"]
[BlackElo "1625"]
[Round "11.27"]
[Result "1/2-1/2"]
[TimeControl "5400+30"]

1. d4 {[%clk 1:30:58]} 1... d5 {[%clk 1:30:41]} 2. Nf3 {[%clk 1:31:21]} 2... Nf6
{[%clk 1:31:06]} 3. e3 {[%clk 1:31:35]} 3... c5 {[%clk 1:31:31]} 4. dxc5 {[%clk
1:31:59]} 4... e6 {[%clk 1:31:51]} 5. b4 {[%clk 1:31:52]} 5... a5 {[%clk
1:31:36]} 6. c3 {[%clk 1:31:56]} 6... Bd7 {[%clk 1:30:34]} 7. Bd2 {[%clk
1:28:09]} 7... axb4 {[%clk 1:26:07]} 8. cxb4 {[%clk 1:28:28]} 8... Ba4 {[%clk
1:26:19]} 9. Qc1 {[%clk 1:19:27]} 9... Ne4 {[%clk 1:18:45]} 10. Bd3 {[%clk
1:07:09]} 10... Nxd2 {[%clk 1:15:37]} 11. Nbxd2 {[%clk 1:06:08]} 11... Nc6
{[%clk 1:12:42]} 12. a3 {[%clk 1:01:50]} 12... b6 {[%clk 1:05:45]} 13. cxb6
{[%clk 0:48:33]} 13... Qxb6 {[%clk 1:06:04]} 14. Qb2 {[%clk 0:44:01]} 14... f6
{[%clk 0:57:01]} 15. O-O {[%clk 0:37:07]} 15... Bd6 {[%clk 0:50:08]} 16. Nb3
{[%clk 0:33:44]} 16... Ne5 {[%clk 0:40:21]} 17. Nxe5 {[%clk 0:29:29]} 17... Bxe5
{[%clk 0:39:03]} 18. Nd4 {[%clk 0:29:49]} 18... O-O {[%clk 0:36:18]} 19. f4
{[%clk 0:21:31]} 19... Bxd4 {[%clk 0:31:43]} 20. exd4 {[%clk 0:21:36]} 20... e5
{[%clk 0:27:03]} 21. fxe5 {[%clk 0:21:58]} 21... fxe5 {[%clk 0:27:18]} 22. Kh1
{[%clk 0:21:07]} 22... Qxd4 {[%clk 0:17:41]} 23. Qxd4 {[%clk 0:21:27]} 23...
exd4 {[%clk 0:17:56]} 24. Kg1 {[%clk 0:21:11]} 24... Bb3 {[%clk 0:16:52]} 25. b5
{[%clk 0:19:39]} 25... Bc4 {[%clk 0:15:29]} 26. Rfd1 {[%clk 0:18:33]} 26... Bxd3
{[%clk 0:09:27]} 27. Rxd3 {[%clk 0:18:53]} 27... Ra4 {[%clk 0:09:44]} 28. Rad1
{[%clk 0:18:17]} 28... Rb8 {[%clk 0:09:22]} 29. Rb3 {[%clk 0:16:11]} 29... Ra5
{[%clk 0:06:43]} 30. Rxd4 {[%clk 0:15:10]} 30... Rbxb5 {[%clk 0:07:03]} 31. Rxb5
{[%clk 0:14:23]} 31... Rxb5 {[%clk 0:07:26]} 32. Rb4 {[%clk 0:14:39]} 32... Ra5
{[%clk 0:05:50]} 33. Rb3 {[%clk 0:14:22]} 33... Kf7 {[%clk 0:05:27]} 34. Kf2
{[%clk 0:14:36]} 34... Ke6 {[%clk 0:05:04]} 35. Ke3 {[%clk 0:13:30]} 35... Ra6
{[%clk 0:02:55]} 36. Kd4 {[%clk 0:11:57]} 36... Kd6 {[%clk 0:02:59]} 37. Rc3
{[%clk 0:10:43]} 37... Ra5 {[%clk 0:02:57]} 38. Rb3 {[%clk 0:10:20]} 1/2-1/2

[Variant "Standard"]
[Site "Europe Echecs"]

[Event "Championnat du monde jeunes U10F"]
[Date "2024.11.26"]
[White "Milojevic, Dunja"]
[Black "Isakhanyan, Nare"]
[WhiteElo "1610"]
[BlackElo "1540"]
[Round "11.28"]
[Result "0-1"]
[TimeControl "5400+30"]

1. d4 {[%clk 1:30:57]} 1... d5 {[%clk 1:30:57]} 2. c4 {[%clk 1:31:21]} 2... c6
{[%clk 1:31:24]} 3. Nc3 {[%clk 1:31:25]} 3... Nf6 {[%clk 1:31:48]} 4. Nf3 {[%clk
1:27:38]} 4... dxc4 {[%clk 1:32:12]} 5. a4 {[%clk 1:28:01]} 5... Bf5 {[%clk
1:32:37]} 6. e3 {[%clk 1:27:47]} 6... e6 {[%clk 1:32:29]} 7. Bxc4 {[%clk
1:28:05]} 7... Bb4 {[%clk 1:32:54]} 8. O-O {[%clk 1:27:24]} 8... Nbd7 {[%clk
1:32:49]} 9. Qb3 {[%clk 1:26:56]} 9... Qb6 {[%clk 1:28:36]} 10. Nh4 {[%clk
1:02:06]} 10... Bg6 {[%clk 1:24:14]} 11. Bd2 {[%clk 0:56:51]} 11... Bd6 {[%clk
1:18:51]} 12. Qa2 {[%clk 0:50:33]} 12... Nd5 {[%clk 1:14:03]} 13. Rfe1 {[%clk
0:45:10]} 13... Nb4 {[%clk 1:09:32]} 14. Qb3 {[%clk 0:41:29]} 14... Nc2 {[%clk
1:07:28]} 15. Nxg6 {[%clk 0:40:11]} 15... Qxb3 {[%clk 1:05:17]} 16. Bxb3 {[%clk
0:40:13]} 16... Nxa1 {[%clk 1:05:36]} 17. Nxh8 {[%clk 0:39:00]} 17... Nxb3
{[%clk 1:05:59]} 18. Ne4 {[%clk 0:38:17]} 18... Be7 {[%clk 1:03:39]} 19. Bc3
{[%clk 0:35:01]} 19... f5 {[%clk 0:58:36]} 20. Ng3 {[%clk 0:35:00]} 20... Bf6
{[%clk 0:56:06]} 21. e4 {[%clk 0:31:55]} 21... f4 {[%clk 0:54:35]} 22. Nh5
{[%clk 0:31:06]} 22... Bxd4 {[%clk 0:45:23]} 23. Nxf4 {[%clk 0:25:36]} 23...
Bxc3 {[%clk 0:44:37]} 24. bxc3 {[%clk 0:25:52]} 24... Ke7 {[%clk 0:44:42]} 25.
Nhg6+ {[%clk 0:26:11]} 25... hxg6 {[%clk 0:45:07]} 26. Nxg6+ {[%clk 0:26:38]}
26... Kf7 {[%clk 0:45:00]} 27. Nf4 {[%clk 0:26:52]} 27... Nbc5 {[%clk 0:45:00]}
28. a5 {[%clk 0:26:32]} 28... Nb3 {[%clk 0:42:31]} 29. a6 {[%clk 0:26:23]} 29...
bxa6 {[%clk 0:41:58]} 30. Re3 {[%clk 0:26:22]} 30... Ne5 {[%clk 0:39:56]} 31. h4
{[%clk 0:25:12]} 31... a5 {[%clk 0:39:12]} 32. Re1 {[%clk 0:24:27]} 32... a4
{[%clk 0:38:44]} 33. Ne2 {[%clk 0:24:06]} 33... a3 {[%clk 0:38:33]} 34. Nc1
{[%clk 0:23:58]} 34... Nxc1 {[%clk 0:38:11]} 35. Rxc1 {[%clk 0:24:24]} 35... Rb8
{[%clk 0:38:15]} 36. Ra1 {[%clk 0:24:27]} 36... Nc4 {[%clk 0:38:31]} 37. Kh2
{[%clk 0:24:25]} 37... Rb2 {[%clk 0:38:47]} 38. Kg3 {[%clk 0:23:28]} 38... a2
{[%clk 0:38:54]} 39. Kf3 {[%clk 0:21:57]} 39... Nd2+ {[%clk 0:39:06]} 40. Ke3
{[%clk 0:22:16]} 40... Nb3 {[%clk 0:39:30]} 0-1

[Variant "Standard"]
[Site "Europe Echecs"]

[Event "Championnat du monde jeunes U10F"]
[Date "2024.11.26"]
[White "Bjerregaard Hagen, Frida"]
[Black "Smilic, Nina"]
[WhiteElo "1815"]
[BlackElo "1540"]
[Round "11.29"]
[Result "0-1"]
[TimeControl "5400+30"]

1. d4 {[%clk 1:30:58]} 1... Nf6 {[%clk 1:30:55]} 2. Nf3 {[%clk 1:31:17]} 2... g6
{[%clk 1:31:20]} 3. e3 {[%clk 1:31:39]} 3... Bg7 {[%clk 1:31:40]} 4. Be2 {[%clk
1:31:55]} 4... O-O {[%clk 1:32:01]} 5. O-O {[%clk 1:32:15]} 5... d6 {[%clk
1:32:25]} 6. b3 {[%clk 1:32:23]} 6... c5 {[%clk 1:32:07]} 7. Bb2 {[%clk
1:31:56]} 7... b6 {[%clk 1:32:24]} 8. c4 {[%clk 1:31:40]} 8... Bb7 {[%clk
1:32:26]} 9. Nc3 {[%clk 1:30:47]} 9... Nbd7 {[%clk 1:31:30]} 10. Qd2 {[%clk
1:28:26]} 10... a6 {[%clk 1:30:30]} 11. Rfd1 {[%clk 1:25:59]} 11... Rc8 {[%clk
1:28:35]} 12. Rac1 {[%clk 1:23:43]} 12... Re8 {[%clk 1:26:36]} 13. h3 {[%clk
1:19:35]} 13... Ne4 {[%clk 1:22:33]} 14. Nxe4 {[%clk 1:19:24]} 14... Bxe4 {[%clk
1:22:56]} 15. Ng5 {[%clk 1:09:43]} 15... Bb7 {[%clk 1:22:52]} 16. Bf3 {[%clk
1:06:19]} 16... Bxf3 {[%clk 1:23:07]} 17. Nxf3 {[%clk 1:06:37]} 17... Nf6 {[%clk
1:23:01]} 18. Qd3 {[%clk 1:04:18]} 18... Qc7 {[%clk 1:19:32]} 19. dxc5 {[%clk
1:02:20]} 19... bxc5 {[%clk 1:18:42]} 20. Bc3 {[%clk 0:59:30]} 20... Ra8 {[%clk
1:16:58]} 21. Ne1 {[%clk 0:54:32]} 21... a5 {[%clk 1:17:03]} 22. a4 {[%clk
0:54:23]} 22... Rab8 {[%clk 1:15:51]} 23. Rb1 {[%clk 0:49:49]} 23... Rb7 {[%clk
1:15:11]} 24. Rb2 {[%clk 0:50:06]} 24... Reb8 {[%clk 1:14:59]} 25. Rdb1 {[%clk
0:50:22]} 25... Ra7 {[%clk 1:09:14]} 26. Nc2 {[%clk 0:48:45]} 26... Ne8 {[%clk
1:06:25]} 27. Bxg7 {[%clk 0:48:26]} 27... Kxg7 {[%clk 1:06:38]} 28. Na3 {[%clk
0:48:42]} 28... Qd7 {[%clk 1:06:32]} 29. Nb5 {[%clk 0:49:00]} 29... Raa8 {[%clk
1:06:41]} 30. e4 {[%clk 0:48:10]} 30... Qc6 {[%clk 1:00:06]} 31. Re2 {[%clk
0:46:20]} 31... Rd8 {[%clk 0:51:06]} 32. Qe3 {[%clk 0:44:56]} 32... e5 {[%clk
0:41:48]} 33. Rd1 {[%clk 0:40:35]} 33... Ra6 {[%clk 0:40:53]} 34. Qg5 {[%clk
0:38:36]} 34... Qd7 {[%clk 0:40:48]} 35. Red2 {[%clk 0:38:03]} 35... f6 {[%clk
0:39:07]} 36. Qg3 {[%clk 0:37:13]} 36... Qe7 {[%clk 0:36:19]} 37. Rd3 {[%clk
0:34:57]} 37... Nc7 {[%clk 0:35:12]} 38. h4 {[%clk 0:33:35]} 38... Ne6 {[%clk
0:34:33]} 39. Qg4 {[%clk 0:30:33]} 39... Nf4 {[%clk 0:27:39]} 40. R3d2 {[%clk
0:29:36]} 40... Rb6 {[%clk 0:23:24]} 41. g3 {[%clk 0:28:38]} 41... Ne6 {[%clk
0:23:19]} 42. h5 {[%clk 0:26:36]} 42... Nd4 {[%clk 0:21:29]} 43. Rd3 {[%clk
0:24:51]} 43... Rf8 {[%clk 0:14:25]} 44. Kg2 {[%clk 0:22:51]} 44... g5 {[%clk
0:11:39]} 45. Rh1 {[%clk 0:21:05]} 45... h6 {[%clk 0:11:10]} 46. Re3 {[%clk
0:18:55]} 46... Qf7 {[%clk 0:08:06]} 47. Rd3 {[%clk 0:15:44]} 47... f5 {[%clk
0:06:04]} 48. exf5 {[%clk 0:15:40]} 48... Qxf5 {[%clk 0:06:03]} 49. Qxf5 {[%clk
0:16:00]} 49... Rxf5 {[%clk 0:06:26]} 50. g4 {[%clk 0:13:28]} 50... Rf4 {[%clk
0:06:23]} 51. f3 {[%clk 0:12:31]} 51... Kf7 {[%clk 0:06:24]} 52. Re1 {[%clk
0:12:17]} 52... Ke7 {[%clk 0:05:40]} 53. Nc7 {[%clk 0:10:38]} 53... e4 {[%clk
0:03:09]} 54. Nd5+ {[%clk 0:10:12]} 54... Kd8 {[%clk 0:03:27]} 55. Nxf4 {[%clk
0:09:59]} 55... exd3 {[%clk 0:03:41]} 56. Nxd3 {[%clk 0:09:55]} 56... Rxb3
{[%clk 0:03:49]} 57. Rd1 {[%clk 0:08:25]} 57... Rc3 {[%clk 0:03:46]} 58. f4
{[%clk 0:08:10]} 58... Rc2+ {[%clk 0:02:37]} 59. Kg3 {[%clk 0:08:07]} 59... Ne2+
{[%clk 0:02:38]} 60. Kf3 {[%clk 0:08:14]} 60... gxf4 {[%clk 0:02:45]} 61. Nxf4
{[%clk 0:08:18]} 61... Nxf4 {[%clk 0:03:08]} 62. Kxf4 {[%clk 0:08:44]} 62...
Rxc4+ {[%clk 0:03:33]} 63. Kf5 {[%clk 0:09:08]} 63... Kd7 {[%clk 0:03:45]} 64.
Ra1 {[%clk 0:09:03]} 64... d5 {[%clk 0:02:58]} 65. Ke5 {[%clk 0:09:19]} 65...
Rxg4 {[%clk 0:03:15]} 66. Kxd5 {[%clk 0:09:45]} 66... Rg5+ {[%clk 0:03:39]} 67.
Kc4 {[%clk 0:10:06]} 67... Rxh5 {[%clk 0:03:56]} 68. Kb5 {[%clk 0:09:53]} 68...
Kd6 {[%clk 0:02:52]} 69. Rd1+ {[%clk 0:10:04]} 69... Rd5 {[%clk 0:02:35]} 70.
Rh1 {[%clk 0:10:23]} 70... h5 {[%clk 0:02:43]} 71. Kc4 {[%clk 0:09:15]} 71...
Kc6 {[%clk 0:02:47]} 72. Rh4 {[%clk 0:08:58]} 72... Rd4+ {[%clk 0:03:03]} 73.
Rxd4 {[%clk 0:09:22]} 73... cxd4 {[%clk 0:03:29]} 74. Kxd4 {[%clk 0:09:46]}
74... h4 {[%clk 0:03:55]} 75. Ke3 {[%clk 0:10:04]} 75... Kc5 {[%clk 0:04:20]}
76. Kf4 {[%clk 0:10:29]} 76... Kb4 {[%clk 0:04:46]} 77. Kg4 {[%clk 0:10:54]}
77... Kxa4 {[%clk 0:05:10]} 78. Kxh4 {[%clk 0:11:19]} 78... Kb3 {[%clk 0:05:24]}
79. Kg3 {[%clk 0:11:45]} 79... a4 {[%clk 0:05:47]} 80. Kf2 {[%clk 0:12:08]}
80... a3 {[%clk 0:06:12]} 81. Ke2 {[%clk 0:12:29]} 81... a2 {[%clk 0:06:28]} 82.
Kd2 {[%clk 0:12:52]} 82... a1=Q 83. Ke2 {[%clk 0:13:14]} 83... Qc3 {[%clk
0:07:14]} 84. Kd1 {[%clk 0:13:38]} 84... Qb2 {[%clk 0:07:35]} 85. Ke1 {[%clk
0:14:03]} 85... Kc3 {[%clk 0:08:01]} 86. Kd1 {[%clk 0:14:07]} 86... Qd2# {[%clk
0:08:26]} 0-1

[Variant "Standard"]
[Site "Europe Echecs"]

[Event "Championnat du monde jeunes U10F"]
[Date "2024.11.26"]
[White "Billod-Laillet, Camille"]
[Black "Saltkhutsishvili, Sara"]
[WhiteElo "1732"]
[BlackElo "1546"]
[Round "11.30"]
[Result "0-1"]
[TimeControl "5400+30"]

1. e4 {[%clk 1:30:57]} 1... c6 {[%clk 1:29:38]} 2. d4 {[%clk 1:31:21]} 2... d5
{[%clk 1:30:02]} 3. exd5 {[%clk 1:31:27]} 3... cxd5 {[%clk 1:30:29]} 4. Bd3
{[%clk 1:31:45]} 4... Nc6 {[%clk 1:30:53]} 5. c3 {[%clk 1:32:09]} 5... Qc7
{[%clk 1:31:18]} 6. h3 {[%clk 1:32:09]} 6... e6 {[%clk 1:30:02]} 7. Nf3 {[%clk
1:32:15]} 7... Bd6 {[%clk 1:28:43]} 8. Be3 {[%clk 1:30:24]} 8... Nge7 {[%clk
1:22:17]} 9. Nbd2 {[%clk 1:27:11]} 9... h6 {[%clk 1:19:25]} 10. O-O {[%clk
1:26:57]} 10... O-O {[%clk 1:17:47]} 11. Nb3 {[%clk 1:20:45]} 11... f6 {[%clk
1:12:08]} 12. Nh4 {[%clk 1:13:30]} 12... e5 {[%clk 1:03:07]} 13. Ng6 {[%clk
1:11:16]} 13... Rd8 {[%clk 0:58:15]} 14. Qd2 {[%clk 1:01:50]} 14... e4 {[%clk
0:55:03]} 15. Nxe7+ {[%clk 1:02:02]} 15... Nxe7 {[%clk 0:55:00]} 16. Bc2 {[%clk
1:01:04]} 16... f5 {[%clk 0:50:25]} 17. f4 {[%clk 0:55:04]} 17... a5 {[%clk
0:47:54]} 18. a4 {[%clk 0:52:50]} 18... b6 {[%clk 0:45:44]} 19. Bd1 {[%clk
0:51:24]} 19... Ba6 {[%clk 0:40:44]} 20. Be2 {[%clk 0:51:29]} 20... Bc4 {[%clk
0:40:24]} 21. Nc1 {[%clk 0:44:51]} 21... Rab8 {[%clk 0:35:44]} 22. Bxc4 dxc4
{[%clk 0:34:35]} 23. Ne2 {[%clk 0:33:37]} 23... Nd5 {[%clk 0:32:52]} 24. Rf2
{[%clk 0:26:56]} 24... Rf8 {[%clk 0:28:05]} 25. Raf1 {[%clk 0:20:42]} 25... b5
{[%clk 0:25:42]} 26. axb5 {[%clk 0:20:30]} 26... Rxb5 {[%clk 0:25:17]} 27. Ng3
{[%clk 0:17:11]} 27... g6 {[%clk 0:22:32]} 28. Rb1 {[%clk 0:16:08]} 28... a4
{[%clk 0:21:45]} 29. Ra1 {[%clk 0:15:19]} 29... Rfb8 {[%clk 0:20:02]} 30. Ra2
{[%clk 0:14:44]} 30... Rb3 {[%clk 0:18:40]} 31. Nf1 {[%clk 0:12:04]} 31... a3
{[%clk 0:17:27]} 32. bxa3 {[%clk 0:10:53]} 32... Nxc3 {[%clk 0:16:48]} 33. Ra1
{[%clk 0:09:33]} 33... Nd5 {[%clk 0:16:18]} 34. a4 {[%clk 0:09:04]} 34... Bb4
{[%clk 0:13:20]} 35. Qc1 {[%clk 0:07:47]} 35... Ba5 {[%clk 0:11:50]} 36. Re2
{[%clk 0:06:40]} 36... c3 {[%clk 0:10:00]} 37. Rc2 {[%clk 0:06:15]} 37... Nb4
{[%clk 0:09:49]} 38. Re2 {[%clk 0:05:44]} 38... Nd3 {[%clk 0:09:44]} 39. Qd1
{[%clk 0:05:22]} 39... Rb2 {[%clk 0:09:15]} 40. Rxb2 {[%clk 0:04:00]} 40... Rxb2
{[%clk 0:09:11]} 41. Bc1 {[%clk 0:03:52]} 41... c2 {[%clk 0:08:47]} 42. Qe2
{[%clk 0:03:02]} 42... Rb1 {[%clk 0:09:00]} 43. Ra2 {[%clk 0:03:14]} 43... Rxc1
{[%clk 0:08:20]} 44. d5 {[%clk 0:03:26]} 44... Nb4 {[%clk 0:08:02]} 45. Ra3
{[%clk 0:03:26]} 45... Rxf1+ {[%clk 0:07:46]} 46. Kxf1 {[%clk 0:03:37]} 46...
c1=Q+ {[%clk 0:08:00]} 47. Kf2 {[%clk 0:03:46]} 47... Q7xf4+ {[%clk 0:08:02]}
48. Rf3 {[%clk 0:04:07]} 48... e3+ {[%clk 0:08:07]} 49. Qxe3 {[%clk 0:04:13]}
49... Qcxe3+ {[%clk 0:07:59]} 50. Kf1 {[%clk 0:04:24]} 50... Nd3 {[%clk
0:08:00]} 51. Rxf4 {[%clk 0:04:37]} 51... Qe1# {[%clk 0:08:00]} 0-1

[Variant "Standard"]
[Site "Europe Echecs"]

[Event "Championnat du monde jeunes U10F"]
[Date "2024.11.26"]
[White "Stoica, Melina-Theodora"]
[Black "Khelfallah , Ikhlas"]
[WhiteElo "1675"]
[BlackElo "1449"]
[Round "11.31"]
[Result "1/2-1/2"]
[TimeControl "5400+30"]

1. d4 {[%clk 1:30:56]} 1... Nf6 {[%clk 1:30:46]} 2. Nf3 {[%clk 1:31:14]} 2... g6
{[%clk 1:31:01]} 3. c4 {[%clk 1:31:33]} 3... Bg7 {[%clk 1:31:18]} 4. Nc3 {[%clk
1:31:15]} 4... O-O {[%clk 1:31:38]} 5. e4 {[%clk 1:29:58]} 5... d6 {[%clk
1:32:03]} 6. Be2 {[%clk 1:28:50]} 6... e5 {[%clk 1:30:39]} 7. d5 {[%clk
1:26:06]} 7... a5 {[%clk 1:25:22]} 8. Be3 {[%clk 1:21:43]} 8... Na6 {[%clk
1:25:06]} 9. h3 {[%clk 1:18:40]} 9... Nc5 {[%clk 1:21:10]} 10. Bxc5 {[%clk
1:14:39]} 10... dxc5 {[%clk 1:21:23]} 11. O-O {[%clk 1:10:20]} 11... Re8 {[%clk
1:12:04]} 12. Qc2 {[%clk 0:56:49]} 12... Nh5 {[%clk 1:06:46]} 13. Rfd1 {[%clk
0:44:54]} 13... Nf4 {[%clk 0:52:56]} 14. Nb5 {[%clk 0:36:03]} 14... Bd7 {[%clk
0:36:58]} 15. a4 {[%clk 0:25:18]} 15... Bxb5 {[%clk 0:33:24]} 16. axb5 {[%clk
0:24:23]} 16... b6 {[%clk 0:32:30]} 17. Ra3 {[%clk 0:15:58]} 17... Qf6 {[%clk
0:23:42]} 18. Ne1 {[%clk 0:10:28]} 18... Bh6 {[%clk 0:19:38]} 19. Nd3 {[%clk
0:04:12]} 19... Qg5 {[%clk 0:16:10]} 20. Nxf4 {[%clk 0:03:52]} 20... exf4 {[%clk
0:16:14]} 21. Bf3 {[%clk 0:02:56]} 21... Rad8 {[%clk 0:14:59]} 22. Rad3 {[%clk
0:02:17]} 22... Qe5 {[%clk 0:13:16]} 23. Qd2 {[%clk 0:01:38]} 23... Rd6 {[%clk
0:10:39]} 24. Qc3 {[%clk 0:01:25]} 24... Bg7 {[%clk 0:10:47]} 25. Qxe5 {[%clk
0:01:42]} 25... Bxe5 {[%clk 0:11:01]} 26. b3 {[%clk 0:01:43]} 26... Ra8 {[%clk
0:09:51]} 27. R3d2 {[%clk 0:01:33]} 27... Re8 {[%clk 0:08:51]} 28. Ra2 {[%clk
0:01:32]} 28... Kg7 {[%clk 0:07:19]} 29. Re2 {[%clk 0:01:28]} 29... h5 {[%clk
0:06:47]} 30. Ra2 {[%clk 0:01:25]} 30... Kh6 {[%clk 0:06:53]} 31. Be2 {[%clk
0:01:11]} 31... Rh8 {[%clk 0:06:46]} 32. f3 {[%clk 0:01:25]} 32... g5 {[%clk
0:06:21]} 33. Kf2 {[%clk 0:01:24]} 33... Rg6 {[%clk 0:05:44]} 34. Rh1 {[%clk
0:01:34]} 34... Rf8 {[%clk 0:05:30]} 35. Bd3 {[%clk 0:01:48]} 35... Kg7 {[%clk
0:05:14]} 36. Be2 {[%clk 0:02:04]} 36... Bd4+ {[%clk 0:05:15]} 37. Ke1 {[%clk
0:02:21]} 37... f5 {[%clk 0:05:06]} 38. Bd3 {[%clk 0:01:44]} 38... fxe4 {[%clk
0:04:44]} 39. Bxe4 {[%clk 0:02:06]} 39... Re8 {[%clk 0:04:56]} 40. Kd1 {[%clk
0:02:23]} 40... Rf6 {[%clk 0:04:45]} 41. Re2 {[%clk 0:02:35]} 41... Rd8 {[%clk
0:04:06]} 42. Kc2 {[%clk 0:02:50]} 42... Rfd6 {[%clk 0:03:50]} 43. Rd1 {[%clk
0:02:38]} 43... Ra8 {[%clk 0:04:11]} 44. Kd3 {[%clk 0:02:18]} 44... a4 {[%clk
0:04:19]} 45. Ra2 {[%clk 0:02:10]} 45... a3 {[%clk 0:02:36]} 46. Rdd2 {[%clk
0:02:22]} 46... Kf6 {[%clk 0:02:49]} 47. Re2 {[%clk 0:02:05]} 47... Ra5 {[%clk
0:02:30]} 48. Rec2 {[%clk 0:01:09]} 48... Bb2 {[%clk 0:02:41]} 49. Re2 {[%clk
0:01:30]} 49... Rd7 {[%clk 0:02:06]} 50. Kc2 {[%clk 0:01:41]} 50... Re7 {[%clk
0:02:13]} 51. Re1 {[%clk 0:01:42]} 51... g4 {[%clk 0:02:10]} 52. hxg4 {[%clk
0:01:40]} 52... hxg4 {[%clk 0:02:35]} 53. Re2 {[%clk 0:01:22]} 53... gxf3 {[%clk
0:02:01]} 54. gxf3 {[%clk 0:01:18]} 54... Ra8 {[%clk 0:01:34]} 55. Rg2 {[%clk
0:01:14]} 55... Rg7 {[%clk 0:01:34]} 56. Rxg7 {[%clk 0:01:21]} 56... Kxg7 {[%clk
0:01:58]} 57. d6 {[%clk 0:01:35]} 57... Rd8 {[%clk 0:01:46]} 1/2-1/2

[Variant "Standard"]
[Site "Europe Echecs"]